bitfinex/quotes_SOLUSD_20240713
["timestamp","ask_amount","ask_price","bid_price","bid_amount"]
[1720887432507,20.8638604,141.01,140.96,14.58]
[1720887432777,30.8638604,141.01,140.92,16.4623]
[1720887432984,45.4438604,141.01,140.96,14.58]
[1720887433182,45.4438604,141.01,140.92,16.4623]
[1720887433359,45.4438604,141.01,140.95,14.58]
[1720887434054,14.58,141.0,140.95,14.58]
[1720887435194,16.5114,140.95,140.86,2.76050945]
[1720887435364,10.0,140.92,140.84,14.58]
[1720887435683,14.58,140.9,140.85,14.58]
[1720887436192,14.58,140.9,140.84,14.58]
[1720887436697,14.58,140.9,140.81,16.361]
[1720887436698,10.0,140.9,140.81,16.361]
[1720887436883,34.58,140.89,140.84,14.58]
[1720887437070,34.58,140.89,140.83,14.58]
[1720887437870,20.0,140.89,140.83,14.58]
[1720887438062,14.58,140.87,140.82,14.58]
[1720887439090,14.58,140.87,140.77,16.361]
[1720887439274,14.58,140.86,140.81,14.58]
[1720887439472,16.5114,140.88,140.81,14.58]
[1720887439668,16.5114,140.88,140.84,14.58]
[1720887440002,26.3974,140.89,140.85,14.58]
[1720887440176,16.5114,140.91,140.86,14.58]
[1720887440377,31.0914,140.91,140.86,14.58]
[1720887440578,31.0914,140.91,140.8,14.58]
[1720887440774,16.5114,140.91,140.86,14.58]
[1720887440986,31.0914,140.91,140.86,14.58]
[1720887441693,31.0914,140.91,140.81,45.0]
[1720887442479,14.58,140.89,140.81,45.0]
[1720887442692,10.0,140.9,140.78,29.11]
[1720887442865,10.0,140.9,140.79,65.0]
[1720887443066,10.0,140.9,140.79,45.0]
[1720887450894,16.5114,140.91,140.79,45.0]
[1720887451198,20.0,140.9,140.79,45.0]
[1720887454478,30.0,140.9,140.79,45.0]
[1720887455013,20.0,140.9,140.79,45.0]
[1720887457082,30.0,140.9,140.79,45.0]
[1720887460004,10.0,140.88,140.78,29.11]
[1720887460498,30.0,140.9,140.78,29.11]
[1720887460991,45.0,140.89,140.78,29.11]
[1720887461192,10.0,140.88,140.79,45.0]
[1720887461388,20.0,140.87,140.78,29.11]
[1720887461589,20.0,140.87,140.77,16.361]
[1720887461782,20.0,140.87,140.78,45.0]
[1720887462594,14.56,140.86,140.81,14.56]
[1720887464890,34.56,140.87,140.81,14.56]
[1720887465994,20.0,140.87,140.82,14.56]
[1720887466296,20.0,140.87,140.83,14.56]
[1720887466503,20.0,140.88,140.84,14.56]
[1720887466814,20.0,140.88,140.83,14.56]
[1720887469317,20.0,140.88,140.84,14.56]
[1720887470109,20.0,140.88,140.83,14.56]
[1720887471511,34.56,140.89,140.83,14.56]
[1720887473116,34.56,140.89,140.84,14.56]
[1720887473697,20.0,140.89,140.84,14.56]
[1720887473914,34.56,140.9,140.84,14.56]
[1720887474125,20.0,140.9,140.8,58.24]
[1720887474314,20.0,140.9,140.85,14.56]
[1720887478009,20.0,140.9,140.86,14.56]
[1720887479732,20.0,140.9,140.85,14.56]
[1720887480509,20.0,140.9,140.82,16.4725]
[1720887480711,6.3974,140.93,140.87,14.56]
[1720887480931,20.0,140.92,140.87,14.56]
[1720887481223,20.0,140.92,140.88,14.56]
[1720887481431,20.9574,140.93,140.88,14.56]
[1720887486826,15.0615,140.94,140.88,14.56]
[1720887487140,20.0,140.93,140.88,14.56]
[1720887487731,20.0,140.93,140.89,14.56]
[1720887490831,34.56,140.93,140.82,16.4725]
[1720887491032,34.56,140.93,140.83,45.0]
[1720887491239,34.56,140.93,140.87,14.56]
[1720887493726,20.0,140.93,140.83,45.0]
[1720887493933,14.56,140.91,140.86,14.56]
[1720887494224,14.56,140.91,140.85,14.56]
[1720887495238,6.6319,140.92,140.86,14.56]
[1720887495419,21.1919,140.92,140.86,14.56]
[1720887495815,6.6319,140.92,140.87,14.56]
[1720887496039,21.1919,140.92,140.87,14.56]
[1720887496225,21.1919,140.92,140.82,16.4725]
[1720887496431,14.56,140.91,140.86,14.56]
[1720887496823,21.1919,140.92,140.86,14.56]
[1720887497021,6.6319,140.92,140.86,14.56]
[1720887497326,21.1919,140.92,140.83,45.0]
[1720887497639,14.56,140.91,140.83,45.0]
[1720887497850,14.56,140.91,140.85,14.56]
[1720887498230,6.6319,140.92,140.86,14.56]
[1720887498425,21.1919,140.92,140.87,14.56]
[1720887498949,6.6319,140.92,140.88,14.56]
[1720887499317,6.6319,140.92,140.87,14.56]
[1720887501545,21.1919,140.92,140.87,14.56]
[1720887501934,21.1919,140.92,140.86,14.56]
[1720887502531,21.1919,140.92,140.83,45.0]
[1720887502844,14.56,140.91,140.86,14.56]
[1720887503949,6.6319,140.92,140.86,14.56]
[1720887504153,21.1919,140.92,140.87,14.56]
[1720887504528,6.6319,140.92,140.87,14.56]
[1720887504836,21.1919,140.92,140.87,14.56]
[1720887505945,21.1919,140.92,140.83,45.0]
[1720887506145,21.1919,140.92,140.86,14.56]
[1720887506952,14.56,140.91,140.86,14.56]
[1720887507950,14.56,140.91,140.82,16.4725]
[1720887508257,14.56,140.91,140.86,14.56]
[1720887508953,14.56,140.91,140.85,14.56]
[1720887509342,14.56,140.91,140.86,14.56]
[1720887509542,14.56,140.91,140.82,16.4725]
[1720887509746,14.56,140.91,140.85,14.56]
[1720887510859,14.56,140.9,140.82,16.4725]
[1720887511037,14.56,140.9,140.85,14.56]
[1720887511239,6.6319,140.92,140.82,16.4725]
[1720887511449,6.6319,140.92,140.89,14.56]
[1720887511650,6.6319,140.92,140.83,45.0]
[1720887511866,6.6319,140.92,140.88,14.56]
[1720887513573,6.6319,140.92,140.83,45.0]
[1720887513869,6.6319,140.92,140.87,14.56]
[1720887514642,21.1919,140.92,140.86,14.56]
[1720887515068,14.56,140.91,140.86,14.56]
[1720887515574,14.56,140.9,140.85,14.56]
[1720887515871,14.56,140.91,140.85,14.56]
[1720887516974,14.56,140.9,140.85,14.56]
[1720887518473,14.56,140.91,140.85,14.56]
[1720887518679,14.56,140.91,140.86,14.56]
[1720887519184,21.1919,140.92,140.86,14.56]
[1720887519873,14.56,140.91,140.86,14.56]
[1720887520081,6.6319,140.92,140.87,14.56]
[1720887520583,21.1919,140.92,140.87,14.56]
[1720887521058,21.1919,140.92,140.86,14.56]
[1720887521762,6.6319,140.92,140.86,14.56]
[1720887521961,6.6319,140.92,140.87,14.56]
[1720887523377,14.56,140.93,140.88,14.56]
[1720887523874,29.6215,140.94,140.89,14.56]
[1720887524079,20.0,140.93,140.89,14.56]
[1720887524577,20.0,140.93,140.9,14.56]
[1720887525068,20.0,140.93,140.89,14.56]
[1720887526987,20.0,140.93,140.88,14.56]
[1720887527479,34.56,140.93,140.87,14.56]
[1720887527876,34.56,140.93,140.88,14.56]
[1720887534167,20.0,140.93,140.88,14.56]
[1720887534480,15.0615,140.94,140.89,14.56]
[1720887538767,29.6215,140.94,140.88,14.56]
[1720887542782,15.0615,140.94,140.89,14.56]
[1720887543178,6.519,140.95,140.91,14.56]
[1720887543377,6.519,140.95,140.92,14.56]
[1720887543684,6.519,140.95,140.91,14.56]
[1720887545984,6.519,140.95,140.87,15.5014]
[1720887545985,6.519,140.95,140.9,14.56]
[1720887546583,35.56233903,140.98,140.91,14.56]
[1720887546891,14.56,140.96,140.91,14.56]
[1720887547073,20.0,140.95,140.87,15.5014]
[1720887547267,20.0,140.95,140.91,14.56]
[1720887547874,14.56,140.97,140.92,14.56]
[1720887547875,20.0,140.96,140.92,14.56]
[1720887548289,20.0,140.97,140.92,14.56]
[1720887549199,34.56,140.97,140.92,14.56]
[1720887550104,20.0,140.97,140.92,14.56]
[1720887550290,34.56,140.97,140.92,14.56]
[1720887551802,20.0,140.97,140.92,14.56]
[1720887552003,34.56,140.97,140.92,14.56]
[1720887556998,20.0,140.97,140.92,14.56]
[1720887557197,34.56,140.97,140.92,14.56]
[1720887557392,14.56,140.95,140.9,14.56]
[1720887558108,14.56,140.95,140.89,14.56]
[1720887558289,14.56,140.95,140.9,14.56]
[1720887558488,20.0,140.97,140.9,14.56]
[1720887558909,14.56,140.96,140.9,14.56]
[1720887559527,20.0,140.97,140.87,15.5014]
[1720887559818,14.56,140.96,140.9,14.56]
[1720887560123,14.56,140.95,140.9,14.56]
[1720887561208,24.56,140.95,140.87,15.5014]
[1720887561411,14.56,140.93,140.88,14.56]
[1720887561621,14.56,140.93,140.85,6.6324]
[1720887561791,14.56,140.93,140.88,14.56]
[1720887563420,10.0,140.95,140.88,14.56]
[1720887563620,34.56,140.94,140.88,14.56]
[1720887564000,20.0,140.94,140.89,14.56]
[1720887564194,14.56,140.95,140.9,14.56]
[1720887564395,20.0,140.94,140.9,14.56]
[1720887564729,20.0,140.96,140.89,14.56]
[1720887564927,14.56,140.95,140.9,14.56]
[1720887565099,20.0,140.94,140.91,14.56]
[1720887565425,34.56,140.96,140.91,14.56]
[1720887567002,20.0,140.96,140.91,14.56]
[1720887569921,20.0,140.96,140.85,6.6324]
[1720887570123,20.0,140.96,140.91,14.56]
[1720887570424,34.56,140.96,140.91,14.56]
[1720887571219,20.0,140.96,140.91,14.56]
[1720887571423,34.56,140.97,140.92,14.56]
[1720887571917,20.0,140.97,140.92,14.56]
[1720887572125,34.56,140.97,140.91,14.56]
[1720887573613,14.56,140.96,140.91,14.56]
[1720887574212,14.56,140.96,140.89,16.0056]
[1720887574413,14.56,140.96,140.91,14.56]
[1720887574609,14.56,140.96,140.89,16.0056]
[1720887574610,14.56,140.96,140.9,14.56]
[1720887574931,20.0,140.97,140.9,14.56]
[1720887574932,14.56,140.95,140.9,14.56]
[1720887576230,14.56,140.96,140.9,14.56]
[1720887578225,14.56,140.95,140.9,14.56]
[1720887578429,14.56,140.96,140.91,14.56]
[1720887580035,14.56,140.96,140.9,14.56]
[1720887580432,20.0,140.97,140.9,14.56]
[1720887580732,14.56,140.96,140.9,14.56]
[1720887581123,14.56,140.96,140.91,14.56]
[1720887583442,20.0,140.97,140.91,14.56]
[1720887583615,14.56,140.96,140.9,14.56]
[1720887584031,14.56,140.96,140.89,16.0056]
[1720887584239,14.56,140.94,140.88,14.56]
[1720887584948,14.56,140.94,140.89,14.56]
[1720887587222,14.56,140.93,140.86,61.0056]
[1720887587417,14.56,140.93,140.88,14.56]
[1720887588241,14.56,140.92,140.87,14.56]
[1720887588854,14.56,140.91,140.86,14.56]
[1720887589729,14.56,140.91,140.85,6.6324]
[1720887590035,14.56,140.91,140.83,23.18158126]
[1720887590248,22.9058,140.94,140.84,14.56]
[1720887590249,14.56,140.9,140.84,14.56]
[1720887590821,14.56,140.9,140.85,14.56]
[1720887591426,22.9058,140.94,140.86,14.56]
[1720887591749,14.56,140.92,140.87,14.56]
[1720887592327,14.56,140.92,140.86,14.56]
[1720887594935,14.56,140.93,140.87,14.56]
[1720887595126,14.56,140.93,140.88,14.56]
[1720887595325,22.9058,140.94,140.88,14.56]
[1720887595534,37.4658,140.94,140.88,14.56]
[1720887597728,22.9058,140.94,140.88,14.56]
[1720887597929,35.9658,140.94,140.88,14.56]
[1720887599231,15.1547,140.94,140.89,14.56]
[1720887599433,14.141504,140.98,140.89,14.56]
[1720887599637,14.56,140.95,140.9,14.56]
[1720887600034,14.56,140.95,140.89,14.56]
[1720887601052,14.56,140.94,140.88,14.56]
[1720887601346,14.56,140.94,140.89,14.56]
[1720887601552,14.56,140.95,140.9,14.56]
[1720887601739,14.56,140.94,140.89,14.56]
[1720887602127,14.56,140.95,140.89,14.56]
[1720887602546,16.1024,140.97,140.9,45.0]
[1720887602843,30.6624,140.97,140.91,14.56]
[1720887604353,14.56,140.96,140.91,14.56]
[1720887605529,14.56,140.96,140.89,45.0]
[1720887605732,14.56,140.96,140.9,14.56]
[1720887606032,14.56,140.95,140.9,14.56]
[1720887606233,16.1024,140.97,140.91,14.56]
[1720887606437,14.56,140.96,140.91,14.56]
[1720887606857,16.1024,140.97,140.91,14.56]
[1720887607058,14.56,140.96,140.91,14.56]
[1720887608855,16.1024,140.97,140.91,14.56]
[1720887609072,30.6624,140.97,140.92,14.56]
[1720887609742,14.56,140.96,140.9,14.56]
[1720887609939,14.56,140.96,140.91,14.56]
[1720887610255,30.6624,140.97,140.91,14.56]
[1720887611153,14.56,140.96,140.91,14.56]
[1720887611654,16.1024,140.97,140.91,14.56]
[1720887611836,14.56,140.96,140.91,14.56]
[1720887612036,30.6624,140.97,140.91,14.56]
[1720887616256,6.3677,140.98,140.91,14.56]
[1720887616462,34.56,140.97,140.91,14.56]
[1720887618361,14.56,140.96,140.91,14.56]
[1720887619562,14.56,140.96,140.88,16.3433]
[1720887619767,14.56,140.95,140.89,45.0]
[1720887620261,14.56,140.93,140.87,14.56]
[1720887620470,15.3019,140.95,140.87,14.56]
[1720887620655,14.56,140.93,140.87,14.56]
[1720887620973,14.56,140.94,140.89,14.56]
[1720887621183,29.8619,140.95,140.89,14.56]
[1720887621689,15.3019,140.95,140.89,14.56]
[1720887621856,29.8619,140.95,140.89,14.56]
[1720887622054,29.8619,140.95,140.84,16.6034]
[1720887622255,14.56,140.94,140.85,65.0]
[1720887622467,14.56,140.94,140.88,14.56]
[1720887624860,14.56,140.93,140.88,14.56]
[1720887625064,15.3019,140.95,140.88,14.56]
[1720887625261,14.56,140.94,140.88,14.56]
[1720887625570,15.3019,140.95,140.89,14.56]
[1720887625571,29.8619,140.95,140.89,14.56]
[1720887626656,20.0,140.97,140.9,14.56]
[1720887626965,14.56,140.95,140.9,14.56]
[1720887628254,14.56,140.95,140.89,14.56]
[1720887628456,15.3019,140.99,140.92,14.56]
[1720887628671,15.3019,140.99,140.93,14.56]
[1720887628867,14.56,140.98,140.93,14.56]
[1720887629473,15.3019,140.99,140.93,14.56]
[1720887629657,14.56,140.98,140.93,14.56]
[1720887630356,24.61489701,141.02,140.93,14.56]
[1720887630558,24.61489701,141.02,140.95,14.56]
[1720887630559,0.8638604,141.01,140.95,14.56]
[1720887630876,14.56,141.0,140.95,14.56]
[1720887631171,14.56,141.0,140.94,14.56]
[1720887631670,14.56,141.0,140.95,14.56]
[1720887632767,14.56,140.99,140.9,45.0]
[1720887632972,14.56,141.0,140.94,14.56]
[1720887633482,14.56,141.0,140.95,14.56]
[1720887634462,15.4238604,141.01,140.95,14.56]
[1720887634669,20.0,141.0,140.95,14.56]
[1720887636457,0.8638604,141.01,140.92,6.6489]
[1720887636687,20.8638604,141.01,140.97,14.56]
[1720887637189,0.8638604,141.01,140.97,14.56]
[1720887637983,0.8638604,141.01,140.98,14.56]
[1720887638355,0.8638604,141.01,140.99,14.56]
[1720887639104,0.8638604,141.01,140.98,14.56]
[1720887639309,0.8638604,141.01,140.99,14.56]
[1720887639587,0.8638604,141.01,141.0,32.26469848]
[1720887640465,17.42017826,141.11,141.01,6.6489]
[1720887640666,10.0,141.11,141.05,14.56]
[1720887640866,14.56,141.09,141.04,14.56]
[1720887641288,10.0,141.11,141.04,14.56]
[1720887641489,14.56,141.1,141.04,14.56]
[1720887641697,24.56,141.11,141.02,1.41781868]
[1720887641894,14.56,141.1,141.05,14.56]
[1720887642097,20.0,141.09,141.04,14.56]
[1720887642675,34.56,141.09,141.04,14.56]
[1720887642895,20.0,141.09,141.04,14.56]
[1720887643081,34.56,141.09,141.04,14.56]
[1720887643978,34.56,141.09,141.01,6.6489]
[1720887643979,34.56,141.09,141.03,14.56]
[1720887644199,34.56,141.09,141.04,14.56]
[1720887645097,34.56,141.09,141.01,6.6489]
[1720887645302,34.56,141.09,141.04,14.56]
[1720887645465,14.56,141.07,141.0,16.2867]
[1720887645670,14.56,141.06,140.97,22.9356]
[1720887645887,14.56,141.05,141.0,14.56]
[1720887646784,14.56,141.05,140.99,14.56]
[1720887646986,14.56,141.05,141.0,14.56]
[1720887647872,14.56,141.05,140.97,22.9356]
[1720887648072,10.0,141.12,140.98,20.0]
[1720887648274,24.56,141.12,141.06,14.56]
[1720887648498,14.56,141.12,141.07,14.56]
[1720887648877,22.0511,141.13,141.07,14.56]
[1720887649089,22.0511,141.13,141.08,14.56]
[1720887649301,0.8638604,141.15,141.09,14.56]
[1720887649480,15.4238604,141.15,141.1,14.56]
[1720887650386,0.8638604,141.15,141.1,14.56]
[1720887650590,15.4238604,141.15,141.1,14.56]
[1720887651103,15.4238604,141.15,141.09,14.56]
[1720887651279,15.4238604,141.15,141.1,14.56]
[1720887652377,20.0,141.14,141.1,14.56]
[1720887653181,20.0,141.14,141.09,14.56]
[1720887654012,0.8638604,141.15,141.08,30.3618]
[1720887654199,0.8638604,141.15,141.11,14.56]
[1720887655233,0.8638604,141.15,141.1,14.56]
[1720887655812,0.8638604,141.15,141.06,16.5574]
[1720887655996,0.8638604,141.15,141.1,14.56]
[1720887656291,15.4238604,141.15,141.1,14.56]
[1720887656711,25.4238604,141.15,141.06,16.5574]
[1720887656918,15.4238604,141.15,141.09,14.56]
[1720887657119,0.8638604,141.15,141.09,14.56]
[1720887657287,15.4238604,141.15,141.09,14.56]
[1720887657797,15.4238604,141.15,141.06,16.5574]
[1720887658001,15.4238604,141.15,141.07,45.0]
[1720887658204,15.4238604,141.15,141.1,14.56]
[1720887658408,0.8638604,141.15,141.1,14.56]
[1720887660824,0.8638604,141.15,141.11,14.56]
[1720887661429,0.8638604,141.15,141.07,45.0]
[1720887661639,0.8638604,141.15,141.1,14.56]
[1720887663238,0.8638604,141.15,141.11,14.56]
[1720887664822,0.8638604,141.15,141.07,45.0]
[1720887665257,0.8638604,141.15,141.1,14.56]
[1720887665533,15.4238604,141.15,141.1,14.56]
[1720887666105,0.8638604,141.15,141.1,14.56]
[1720887666435,0.8638604,141.15,141.11,14.56]
[1720887667242,15.4238604,141.15,141.1,14.56]
[1720887668035,0.8638604,141.15,141.07,45.0]
[1720887668250,0.8638604,141.15,141.11,14.56]
[1720887669044,0.8638604,141.15,141.12,14.56]
[1720887670234,22.0909,141.14,141.12,14.56]
[1720887670546,14.56,141.13,141.08,14.56]
[1720887670920,36.6509,141.14,141.09,14.56]
[1720887671251,36.6509,141.14,141.08,14.56]
[1720887671651,22.0909,141.14,141.08,14.56]
[1720887671952,22.0909,141.14,141.09,14.56]
[1720887672924,14.56,141.14,141.09,14.56]
[1720887673129,0.8638604,141.15,141.13,14.56]
[1720887673317,0.8638604,141.15,141.14,59.56]
[1720887674521,0.8638604,141.15,141.14,45.0]
[1720887681134,0.8638604,141.15,141.13,28.97]
[1720887682554,0.8638604,141.15,141.14,45.0]
[1720887682850,0.8638604,141.15,141.14,46.11604337]
[1720887683150,0.8638604,141.15,141.14,81.53674337]
[1720887683355,0.8638604,141.15,141.14,80.4207]
[1720887685962,0.8638604,141.15,141.14,35.4207]
[1720887687253,0.8638604,141.15,141.14,80.4207]
[1720887690552,0.8638604,141.15,141.14,65.0]
[1720887690776,0.8638604,141.15,141.12,11.90596211]
[1720887690973,0.8638604,141.15,141.12,31.72788274]
[1720887692067,0.8638604,141.15,141.13,20.0]
[1720887692557,0.8638604,141.15,141.14,45.0]
[1720887696570,0.8638604,141.15,141.14,59.48]
[1720887696948,69.521018,141.2,141.14,45.0]
[1720887697147,69.521018,141.2,141.19,14.48]
[1720887698265,69.521018,141.2,141.14,45.0]
[1720887698477,69.521018,141.2,141.19,14.48]
[1720887698638,69.521018,141.2,141.14,54.14807937]
[1720887698846,69.521018,141.2,141.19,14.48]
[1720887701291,69.521018,141.2,141.14,45.0]
[1720887701584,69.521018,141.2,141.19,14.48]
[1720887701882,69.521018,141.2,141.14,45.0]
[1720887702058,69.521018,141.21,141.14,45.0]
[1720887702266,69.521018,141.21,141.2,14.48]
[1720887702477,69.521018,141.21,141.14,45.0]
[1720887702651,69.521018,141.21,141.13,20.0]
[1720887702857,69.521018,141.21,141.19,14.48]
[1720887703058,69.521018,141.21,141.12,22.75788274]
[1720887703288,69.521018,141.21,141.18,14.48]
[1720887703790,69.521018,141.21,141.12,80.67788274]
[1720887703965,6.4873,141.2,141.17,14.48]
[1720887704353,6.4873,141.2,141.18,14.48]
[1720887704553,16.2898,141.19,141.12,80.67788274]
[1720887704850,16.2898,141.19,141.18,14.48]
[1720887705952,16.2898,141.19,141.17,14.48]
[1720887706181,16.2898,141.19,141.12,22.75788274]
[1720887706380,16.2898,141.19,141.16,14.48]
[1720887707367,16.2898,141.19,141.12,2.75788274]
[1720887707696,30.7698,141.19,141.14,14.48]
[1720887707899,16.2898,141.19,141.14,14.48]
[1720887708589,16.2898,141.19,141.15,14.48]
[1720887710894,10.0,141.17,141.15,14.48]
[1720887711100,10.0,141.17,141.07,10.37126874]
[1720887711410,10.0,141.17,141.13,14.48]
[1720887711767,10.0,141.17,141.07,10.37126874]
[1720887711970,10.0,141.15,141.11,14.48]
[1720887712174,10.0,141.13,141.11,14.48]
[1720887712404,6.0834,141.11,141.07,2.81563055]
[1720887712697,16.1117,141.12,141.1,14.48]
[1720887712896,16.1117,141.12,141.04,65.3360104]
[1720887713109,6.0834,141.15,141.11,14.48]
[1720887713275,6.0834,141.15,141.14,14.48]
[1720887713472,16.1117,141.16,141.07,16.2352]
[1720887713697,16.1117,141.16,141.08,45.0]
[1720887714072,16.1117,141.16,141.15,14.48]
[1720887715595,6.0834,141.18,141.15,14.48]
[1720887715899,6.0834,141.18,141.12,57.92]
[1720887716108,6.0834,141.18,141.17,14.48]
[1720887716478,6.0834,141.18,141.12,57.92]
[1720887716679,6.0834,141.18,141.17,14.48]
[1720887716887,15.9697,141.2,141.17,14.48]
[1720887717086,15.9697,141.2,141.19,14.48]
[1720887718597,15.9697,141.2,141.15,28.97]
[1720887721816,69.521018,141.21,141.15,28.97]
[1720887724616,69.521018,141.21,141.18,28.97]
[1720887735015,69.521018,141.21,141.19,45.0]
[1720887737533,69.521018,141.21,141.19,46.41625736]
[1720887737713,69.521018,141.21,141.19,45.0]
[1720887737916,69.521018,141.21,141.19,46.4162473]
[1720887738113,69.521018,141.21,141.19,45.0]
[1720887740602,21.7949,141.27,141.2,72.35]
[1720887740799,21.7949,141.27,141.26,14.47]
[1720887741009,21.7949,141.27,141.2,57.88]
[1720887741229,21.7949,141.27,141.26,14.47]
[1720887742525,21.7949,141.27,141.2,57.88]
[1720887743036,21.7949,141.27,141.26,14.47]
[1720887744197,21.7949,141.27,141.2,57.88]
[1720887744400,21.7949,141.27,141.26,14.47]
[1720887746000,21.7949,141.27,141.2,57.88]
[1720887746408,21.7949,141.27,141.26,14.47]
[1720887747921,21.7949,141.27,141.2,57.88]
[1720887748129,21.7949,141.27,141.26,14.47]
[1720887748431,21.7949,141.27,141.2,57.88]
[1720887748717,21.7949,141.27,141.26,14.47]
[1720887749111,21.7949,141.27,141.2,57.88]
[1720887749426,21.7949,141.27,141.26,14.47]
[1720887750321,21.7949,141.27,141.2,57.88]
[1720887750624,21.7949,141.27,141.19,45.0]
[1720887750819,21.7949,141.27,141.25,14.47]
[1720887752241,21.7949,141.27,141.19,45.0]
[1720887752550,21.7949,141.27,141.25,14.47]
[1720887753043,21.7949,141.27,141.26,14.47]
[1720887753332,21.7949,141.27,141.25,14.47]
[1720887754436,21.7949,141.27,141.26,14.47]
[1720887755634,21.7949,141.27,141.19,45.0]
[1720887755843,21.7949,141.27,141.26,14.47]
[1720887756320,21.7949,141.27,141.25,14.47]
[1720887757036,21.7949,141.27,141.26,14.47]
[1720887757546,21.7949,141.27,141.2,57.88]
[1720887757853,21.7949,141.27,141.25,14.47]
[1720887758144,21.7949,141.27,141.18,15.6023]
[1720887758341,21.7949,141.27,141.25,14.47]
[1720887759632,21.7949,141.27,141.26,14.47]
[1720887760042,21.7949,141.27,141.25,14.47]
[1720887760630,10.0,141.26,141.18,15.6023]
[1720887760825,10.0,141.26,141.24,14.47]
[1720887761535,10.0,141.26,141.25,14.47]
[1720887762459,10.0,141.26,141.18,15.6023]
[1720887762742,10.0,141.26,141.24,14.47]
[1720887762955,10.0,141.26,141.25,14.47]
[1720887763351,10.0,141.26,141.24,14.47]
[1720887763529,10.0,141.26,141.18,15.6023]
[1720887763729,10.0,141.26,141.24,14.47]
[1720887765040,10.0,141.26,141.18,15.6023]
[1720887765245,10.0,141.26,141.24,14.47]
[1720887765860,10.0,141.26,141.18,15.6023]
[1720887766028,10.0,141.24,141.16,8.64252381]
[1720887766354,10.0,141.24,141.14,21.9688]
[1720887766355,26.1564,141.22,141.14,15.409]
[1720887766551,26.1564,141.22,141.19,14.47]
[1720887767061,6.4672,141.21,141.12,8.64252381]
[1720887767354,10.0,141.2,141.12,8.64252381]
[1720887767530,10.0,141.2,141.17,14.47]
[1720887767877,6.4672,141.21,141.19,14.47]
[1720887768552,6.4672,141.21,141.12,57.88]
[1720887768763,6.4672,141.21,141.19,14.47]
[1720887769128,6.4672,141.21,141.2,14.47]
[1720887769338,6.4672,141.21,141.19,14.47]
[1720887769538,6.4672,141.21,141.2,14.47]